fUST/lending_fUST_20250303
["ID","MTS","AMOUNT","RATE_DAILY","PERIOD"]
[355154285,1740937840318,-500.0,0.00022465,2]
[355154286,1740937840328,-280.24,0.00022465,2]
[355154287,1740937840338,-500.0,0.00022465,2]
[355154288,1740937840348,-419.06,0.00022465,2]
[355154289,1740937840358,-500.0,0.00022465,2]
[355154290,1740937840367,-500.0,0.00022465,2]
[355154291,1740937840376,-500.0,0.00022465,2]
[355154292,1740937840386,-1308.74,0.00022465,2]
[355154293,1740937840395,-500.0,0.00022465,2]
[355154294,1740937840405,-500.0,0.00022465,2]
[355154295,1740937840415,-500.0,0.00022465,2]
[355154296,1740937840428,-500.0,0.00022465,2]
[355154297,1740937840438,-500.0,0.00022465,2]
[355154298,1740937840447,-574.33,0.00022465,2]
[355154299,1740937840457,-500.0,0.00022465,2]
[355154300,1740937840467,-500.0,0.00022465,2]
[355154301,1740937840477,-500.0,0.00022465,2]
[355154302,1740937840486,-500.0,0.00022465,2]
[355154303,1740937840496,-160.0,0.00022611,2]
[355154304,1740937840506,-568.79549517,0.00022639,2]
[355154305,1740937840516,-500.0,0.00022739,2]
[355154306,1740937840526,-500.0,0.00022739,2]
[355154307,1740937840536,-500.0,0.00022739,2]
[355154308,1740937840545,-500.0,0.00022739,2]
[355154309,1740937840555,-579.85,0.00022739,2]
[355154310,1740937840565,-500.0,0.00022739,2]
[355154311,1740937840576,-500.0,0.00022739,2]
[355154312,1740937840587,-461.49107,0.00022739,2]
[355154313,1740937840597,-500.0,0.00022739,2]
[355154314,1740937840607,-458.51,0.00022739,2]
[355154315,1740937840617,-500.0,0.00022739,2]
[355154316,1740937840627,-1302.36,0.00022739,2]
[355154317,1740937840637,-500.0,0.00022739,2]
[355154318,1740937840648,-254.76,0.00022739,2]
[355154319,1740937840658,-500.0,0.00022739,2]
[355154320,1740937840668,-219.4,0.00022739,2]
[355154321,1740937840681,-584.86,0.00022739,2]
[355154322,1740937840691,-873.99,0.00022739,2]
[355154323,1740937840701,-500.0,0.00022739,2]
[355154324,1740937840711,-500.0,0.00022739,2]
[355154325,1740937840724,-500.0,0.00022739,2]
[355154326,1740937840733,-500.0,0.00022739,2]
[355154327,1740937840743,-15895.62,0.00022739,2]
[355154328,1740937840753,-500.0,0.00022739,2]
[355154329,1740937840765,-500.0,0.00022739,2]
[355154330,1740937840775,-893.79,0.00022739,2]
[355154331,1740937840786,-500.0,0.00022739,2]
[355154332,1740937840795,-990.86,0.00022739,2]
[355154333,1740937840805,-500.0,0.00022739,2]
[355154334,1740937840815,-500.0,0.00022739,2]
[355154335,1740937840826,-528.68,0.00022739,2]
[355154336,1740937840835,-456.99,0.00022739,2]
[355154337,1740937840846,-351.44,0.00022739,2]
[355154338,1740937840855,-500.0,0.00022739,2]
[355154339,1740937840865,-271.76,0.00022739,2]
[355154340,1740937840875,-500.0,0.00022739,2]
[355154341,1740937840884,-1308.74,0.00022739,2]
[355154342,1740937840894,-500.0,0.00022739,2]
[355154343,1740937840904,-500.0,0.00022739,2]
[355154344,1740937840925,-500.0,0.00022739,2]
[355154345,1740937840935,-294.42720628,0.00022739,2]
[355154346,1740937840945,-500.0,0.00022739,2]
[355154348,1740937840956,-574.33,0.00022739,2]
[355154350,1740937840966,-500.0,0.00022739,2]
[355154352,1740937840976,-500.0,0.00022739,2]
[355154354,1740937840985,-500.0,0.00022739,2]
[355154356,1740937840995,-500.0,0.00022739,2]
[355154358,1740937841006,-500.0,0.00023,30]
[355154359,1740937841018,-500.0,0.00023,30]
[355154362,1740937841028,-500.0,0.00023,30]
[355154364,1740937841038,-500.0,0.00023,30]
[355154366,1740937841047,-500.0,0.00023,30]
[355154369,1740937841057,-500.0,0.00023,30]
[355154371,1740937841066,-500.0,0.00023,30]
[355154373,1740937841075,-897.90047472,0.00023,30]
[355154374,1740937841084,-500.0,0.00023013,2]
[355154376,1740937841094,-500.0,0.00023013,2]
[355154379,1740937841104,-638.105798,0.00023013,2]
[355154380,1740937841114,-579.85,0.00023013,2]
[355154382,1740937841124,-272.72,0.00023013,2]
[355154384,1740937841133,-500.0,0.00023013,2]
[355154386,1740937841143,-500.0,0.00023013,2]
[355154388,1740937841153,-1302.36,0.00023013,2]
[355154390,1740937841162,-500.0,0.00023013,2]
[355154392,1740937841177,-500.0,0.00023013,2]
[355154395,1740937841187,-584.86,0.00023013,2]
[355154396,1740937841198,-873.99,0.00023013,2]
[355154398,1740937841208,-500.0,0.00023013,2]
[355154400,1740937841217,-500.0,0.00023013,2]
[355154403,1740937841228,-500.0,0.00023013,2]
[355154405,1740937841238,-500.0,0.00023013,2]
[355154407,1740937841248,-15895.62,0.00023013,2]
[355154409,1740937841258,-500.0,0.00023013,2]
[355154410,1740937841267,-500.0,0.00023013,2]
[355154412,1740937841277,-893.79,0.00023013,2]
[355154414,1740937841287,-500.0,0.00023013,2]
[355154416,1740937841297,-990.86,0.00023013,2]
[355154418,1740937841307,-500.0,0.00023013,2]
[355154420,1740937841316,-500.0,0.00023013,2]
[355154422,1740937841326,-528.68,0.00023013,2]
[355154424,1740937841336,-500.0,0.00023013,2]
[355154426,1740937841346,-500.0,0.00023013,2]
[355154428,1740937841356,-1308.74,0.00023013,2]
[355154430,1740937841366,-500.0,0.00023013,2]
[355154432,1740937841375,-500.0,0.00023013,2]
[355154434,1740937841385,-500.0,0.00023013,2]
[355154436,1740937841395,-574.33,0.00023013,2]
[355154438,1740937841405,-448.5,0.00023013,2]
[355154441,1740937841416,-500.0,0.00023013,2]
[355154443,1740937841430,-500.0,0.00023013,2]
[355154444,1740937841439,-500.0,0.00023013,2]
[355154446,1740937841449,-500.0,0.00023287,2]
[355154448,1740937841459,-630.00146257,0.00023287,2]
[355154450,1740937841469,-579.85,0.00023287,2]
[355154452,1740937841478,-500.0,0.00023287,2]
[355154454,1740937841488,-500.0,0.00023287,2]
[355154456,1740937841498,-500.0,0.00023287,2]
[355154458,1740937841509,-1302.36,0.00023287,2]
[355154460,1740937841519,-500.0,0.00023287,2]
[355154462,1740937841528,-584.86,0.00023287,2]
[355154464,1740937841537,-873.99,0.00023287,2]
[355154466,1740937841547,-222.8,0.00023287,2]
[355154468,1740937841556,-500.0,0.00023287,2]
[355154470,1740937841566,-15895.62,0.00023287,2]
[355154472,1740937841576,-500.0,0.00023287,2]
[355154474,1740937841586,-500.0,0.00023287,2]
[355154476,1740937841595,-893.79,0.00023287,2]
[355154478,1740937841605,-500.0,0.00023287,2]
[355154480,1740937841615,-990.86,0.00023287,2]
[355154482,1740937841624,-500.0,0.00023287,2]
[355154484,1740937841634,-500.0,0.00023287,2]
[355154486,1740937841643,-528.68,0.00023287,2]
[355154488,1740937841653,-500.0,0.00023287,2]
[355154490,1740937841662,-500.0,0.00023287,2]
[355154492,1740937841676,-1308.74,0.00023287,2]
[355154494,1740937841685,-500.0,0.00023287,2]
[355154496,1740937841694,-500.0,0.00023287,2]
[355154498,1740937841704,-500.0,0.00023287,2]
[355154500,1740937841715,-574.33,0.00023287,2]
[355154502,1740937841725,-500.0,0.00023287,2]
[355154504,1740937841738,-500.0,0.00023287,2]
[355154506,1740937841748,-500.0,0.00023287,2]
[355154507,1740937841759,-500.0,0.00023561,2]
[355154508,1740937841769,-579.85,0.00023561,2]
[355154509,1740937841779,-500.0,0.00023561,2]
[355154510,1740937841789,-500.0,0.00023561,2]
[355154511,1740937841798,-500.0,0.00023561,2]
[355154512,1740937841809,-1302.36,0.00023561,2]
[355154513,1740937841819,-500.0,0.00023561,2]
[355154515,1740937841829,-584.86,0.00023561,2]
[355154517,1740937841838,-873.99,0.00023561,2]
[355154519,1740937841848,-500.0,0.00023561,2]
[355154520,1740937841858,-15895.62,0.00023561,2]
[355154522,1740937841868,-500.0,0.00023561,2]
[355154524,1740937841878,-500.0,0.00023561,2]
[355154526,1740937841888,-893.79,0.00023561,2]
[355154528,1740937841898,-500.0,0.00023561,2]
[355154530,1740937841909,-990.86,0.00023561,2]
[355154532,1740937841919,-500.0,0.00023561,2]
[355154534,1740937841932,-500.0,0.00023561,2]
[355154536,1740937841946,-528.68,0.00023561,2]
[355154539,1740937841957,-500.0,0.00023561,2]
[355154541,1740937841967,-500.0,0.00023561,2]
[355154543,1740937841976,-1308.74,0.00023561,2]
[355154544,1740937841986,-500.0,0.00023561,2]
[355154546,1740937841995,-500.0,0.00023561,2]
[355154548,1740937842006,-500.0,0.00023561,2]
[355154550,1740937842017,-574.33,0.00023561,2]
[355154552,1740937842026,-500.0,0.00023561,2]
[355154554,1740937842036,-500.0,0.00023561,2]
[355154556,1740937842045,-500.0,0.00023561,2]
[355154558,1740937842055,-420.0,0.00023817,2]
[355154560,1740937842064,-500.0,0.00023835,2]
[355154562,1740937842074,-579.85,0.00023835,2]
[355154564,1740937842083,-500.0,0.00023835,2]
[355154566,1740937842093,-500.0,0.00023835,2]
[355154568,1740937842102,-500.0,0.00023835,2]
[355154570,1740937842112,-1302.36,0.00023835,2]
[355154572,1740937842122,-500.0,0.00023835,2]
[355154574,1740937842131,-584.86,0.00023835,2]
[355154576,1740937842141,-873.99,0.00023835,2]
[355154578,1740937842150,-500.0,0.00023835,2]
[355154579,1740937842159,-15895.62,0.00023835,2]
[355154581,1740937842168,-500.0,0.00023835,2]
[355154583,1740937842185,-500.0,0.00023835,2]
[355154585,1740937842195,-893.79,0.00023835,2]
[355154587,1740937842205,-500.0,0.00023835,2]
[355154589,1740937842216,-990.86,0.00023835,2]
[355154591,1740937842225,-500.0,0.00023835,2]
[355154593,1740937842236,-500.0,0.00023835,2]
[355154595,1740937842248,-528.68,0.00023835,2]
[355154597,1740937842258,-500.0,0.00023835,2]
[355154599,1740937842268,-500.0,0.00023835,2]
[355154601,1740937842277,-1308.74,0.00023835,2]
[355154603,1740937842287,-500.0,0.00023835,2]
[355154605,1740937842296,-500.0,0.00023835,2]
[355154607,1740937842306,-500.0,0.00023835,2]
[355154609,1740937842315,-574.33,0.00023835,2]
[355154611,1740937842326,-500.0,0.00023835,2]
[355154613,1740937842335,-500.0,0.00023835,2]
[355154615,1740937842345,-500.0,0.00023835,2]
[355154617,1740937842354,-500.0,0.00024109,2]
[355154619,1740937842364,-579.85,0.00024109,2]
[355154621,1740937842373,-500.0,0.00024109,2]
[355154623,1740937842382,-500.0,0.00024109,2]
[355154625,1740937842392,-500.0,0.00024109,2]
[355154627,1740937842401,-1302.36,0.00024109,2]
[355154629,1740937842410,-500.0,0.00024109,2]
[355154631,1740937842420,-584.86,0.00024109,2]
[355154633,1740937842434,-873.99,0.00024109,2]
[355154635,1740937842443,-500.0,0.00024109,2]
[355154637,1740937842452,-15895.62,0.00024109,2]
[355154639,1740937842462,-500.0,0.00024109,2]
[355154641,1740937842471,-500.0,0.00024109,2]
[355154643,1740937842481,-893.79,0.00024109,2]
[355154645,1740937842490,-500.0,0.00024109,2]
[355154647,1740937842500,-990.86,0.00024109,2]
[355154649,1740937842509,-500.0,0.00024109,2]
[355154651,1740937842519,-500.0,0.00024109,2]
[355154653,1740937842529,-528.68,0.00024109,2]
[355154655,1740937842539,-500.0,0.00024109,2]
[355154658,1740937842550,-1308.74,0.00024109,2]
[355154660,1740937842559,-500.0,0.00024109,2]
[355154662,1740937842568,-500.0,0.00024109,2]
[355154664,1740937842578,-500.0,0.00024109,2]
[355154666,1740937842588,-574.33,0.00024109,2]
[355154667,1740937842597,-500.0,0.00024109,2]
[355154670,1740937842608,-500.0,0.00024109,2]
[355154672,1740937842617,-500.0,0.00024109,2]
[355154674,1740937842627,-500.0,0.00024324,2]
[355154676,1740937842637,-500.0,0.00024324,2]
[355154678,1740937842647,-500.0,0.00024324,2]
[355154680,1740937842656,-501.10923772,0.00024324,2]
[355154682,1740937842666,-500.0,0.00024324,2]
[355154684,1740937842680,-500.0,0.00024324,2]
[355154686,1740937842689,-500.0,0.00024324,2]
[355154688,1740937842698,-500.0,0.00024324,2]
[355154690,1740937842708,-500.0,0.00024324,2]
[355154692,1740937842718,-500.0,0.00024324,2]
[355154694,1740937842728,-500.0,0.00024324,2]
[355154696,1740937842737,-500.0,0.00024324,2]
[355154698,1740937842748,-500.0,0.00024324,2]
[355154700,1740937842758,-500.0,0.00024324,2]
[355154702,1740937842769,-500.0,0.00024324,2]
[355154705,1740937842779,-500.0,0.00024324,2]
[355154707,1740937842788,-500.0,0.00024324,2]
[355154709,1740937842798,-500.0,0.00024324,2]
[355154736,1740937842925,-500.0,0.00024324,2]
[355154739,1740937842937,-500.0,0.00024324,2]
[355154742,1740937842947,-500.0,0.00024324,2]
[355154745,1740937842958,-500.0,0.00024324,2]
[355154748,1740937842968,-500.88538323,0.00024324,2]
[355154753,1740937842977,-500.0,0.00024324,2]
[355154757,1740937842987,-500.0,0.00024383,2]
[355154761,1740937842997,-579.85,0.00024383,2]
[355154766,1740937843007,-500.0,0.00024383,2]
[355154770,1740937843017,-500.0,0.00024383,2]
[355154774,1740937843027,-500.0,0.00024383,2]
[355154780,1740937843038,-1302.36,0.00024383,2]
[355154786,1740937843048,-500.0,0.00024383,2]
[355154792,1740937843058,-584.86,0.00024383,2]
[355154798,1740937843067,-873.99,0.00024383,2]
[355154803,1740937843077,-500.0,0.00024383,2]
[355154808,1740937843086,-15895.62,0.00024383,2]
[355154812,1740937843095,-500.0,0.00024383,2]
[355154816,1740937843105,-500.0,0.00024383,2]
[355154819,1740937843114,-893.79,0.00024383,2]
[355154823,1740937843124,-500.0,0.00024383,2]
[355154827,1740937843134,-990.86,0.00024383,2]
[355154830,1740937843144,-500.0,0.00024383,2]
[355154835,1740937843154,-500.0,0.00024383,2]
[355154838,1740937843163,-528.68,0.00024383,2]
[355154840,1740937843176,-1308.74,0.00024383,2]
[355154843,1740937843185,-246.10650609,0.00024383,2]
[355154846,1740937843194,-500.0,0.00024383,2]
[355154849,1740937843204,-531.63,0.00024383,2]
[355154853,1740937843213,-574.33,0.00024383,2]
[355154856,1740937843223,-500.0,0.00024383,2]
[355154860,1740937843233,-500.0,0.00024657,2]
[355154864,1740937843243,-579.85,0.00024657,2]
[355154867,1740937843252,-426.65111604,0.00024657,2]
[355154871,1740937843262,-500.0,0.00024657,2]
[355154874,1740937843272,-500.0,0.00024657,2]
[355154877,1740937843282,-1302.36,0.00024657,2]
[355154880,1740937843292,-500.0,0.00024657,2]
[355154883,1740937843301,-584.86,0.00024657,2]
[355154886,1740937843311,-873.99,0.00024657,2]
[355154889,1740937843321,-500.0,0.00024657,2]
[355154891,1740937843331,-15895.62,0.00024657,2]
[355154893,1740937843341,-500.0,0.00024657,2]
[355154895,1740937843351,-500.0,0.00024657,2]
[355154897,1740937843361,-893.79,0.00024657,2]
[355154899,1740937843370,-500.0,0.00024657,2]
[355154901,1740937843380,-990.86,0.00024657,2]
[355154903,1740937843390,-162.8,0.00024657,2]
[355154905,1740937843399,-500.0,0.00024657,2]
[355154907,1740937843409,-528.68,0.00024657,2]
[355154909,1740937843419,-1308.74,0.00024657,2]
[355154911,1740937843436,-500.0,0.00024657,2]
[355154913,1740937843448,-574.33,0.00024657,2]
[355154915,1740937843458,-500.0,0.00024657,2]
[355154917,1740937843468,-500.0,0.00024658,2]
[355154919,1740937843478,-227.8405664,0.00024658,2]
[355154921,1740937843489,-500.0,0.00024658,2]
[355154923,1740937843500,-500.0,0.00024658,2]
[355154925,1740937843510,-500.0,0.00024658,2]
[355154927,1740937843521,-500.0,0.00024658,2]
[355154929,1740937843531,-500.0,0.00024658,2]
[355154931,1740937843542,-500.0,0.00024658,2]
[355154934,1740937843552,-500.0,0.00024658,2]
[355154936,1740937843562,-500.0,0.00024658,2]
[355154937,1740937843571,-500.0,0.00024658,2]
[355154938,1740937843581,-500.0,0.00024658,2]
[355154940,1740937843591,-500.0,0.00024658,2]
[355154942,1740937843600,-500.0,0.00024658,2]
[355154945,1740937843610,-500.0,0.00024658,2]
[355154948,1740937843620,-500.0,0.00024658,2]
[355154950,1740937843631,-500.0,0.00024658,2]
[355154952,1740937843641,-387.03407322,0.00024658,2]
[355154954,1740937843651,-500.0,0.00024658,2]
[355154956,1740937843660,-500.0,0.00024658,2]
[355154958,1740937843670,-500.0,0.00024658,2]
[355154960,1740937843685,-500.0,0.00024658,2]
[355154962,1740937843694,-500.0,0.00024658,2]
[355154964,1740937843704,-500.0,0.00024658,2]
[355154966,1740937843713,-500.0,0.00024658,2]
[355154968,1740937843723,-500.0,0.00024658,2]
[355154969,1740937843733,-500.0,0.00024658,2]
[355154972,1740937843743,-500.0,0.00024658,2]
[355154974,1740937843754,-500.0,0.00024658,2]
[355154976,1740937843765,-500.0,0.00024658,2]
[355154978,1740937843775,-500.0,0.00024658,2]
[355154981,1740937843799,-500.0,0.00024658,2]
[355154983,1740937843811,-500.0,0.00024658,2]
[355154985,1740937843822,-500.0,0.00024658,2]
[355154987,1740937843833,-500.0,0.00024658,2]
[355154990,1740937843865,-500.0,0.00024658,2]
[355154992,1740937843876,-500.0,0.00024658,2]
[355154994,1740937843886,-500.0,0.00024658,2]
[355154996,1740937843896,-500.0,0.00024658,2]
[355154998,1740937843908,-500.0,0.00024658,2]
[355155000,1740937843920,-500.0,0.00024658,2]
[355155002,1740937843936,-500.0,0.00024658,2]
[355155004,1740937843946,-3213.77935717,0.00024817,2]
[355155006,1740937843959,-500.0,0.00024931,2]
[355155008,1740937843969,-579.85,0.00024931,2]
[355155010,1740937843979,-500.0,0.00024931,2]
[355155012,1740937843991,-500.0,0.00024931,2]
[355155014,1740937844002,-1302.36,0.00024931,2]
[355155016,1740937844011,-500.0,0.00024931,2]
[355155018,1740937844021,-584.86,0.00024931,2]
[355155020,1740937844032,-873.99,0.00024931,2]
[355155022,1740937844042,-500.0,0.00024931,2]
[355155024,1740937844051,-15895.62,0.00024931,2]
[355155026,1740937844061,-500.0,0.00024931,2]
[355155028,1740937844072,-168.09051653,0.00024931,2]
[355155030,1740937844081,-893.79,0.00024931,2]
[355155032,1740937844091,-500.0,0.00024931,2]
[355155034,1740937844101,-990.86,0.00024931,2]
[355155036,1740937844111,-500.0,0.00024931,2]
[355155037,1740937844122,-528.68,0.00024931,2]
[355155039,1740937844132,-1308.74,0.00024931,2]
[355155041,1740937844142,-617.05717947,0.00024931,2]
[355155044,1740937844152,-574.33,0.00024931,2]
[355155047,1740937844162,-284.22,0.00024931,2]
[355155049,1740937844181,-897.55,0.00025,2]
[355155051,1740937844194,-746.0,0.00025,11]
[355155053,1740937844205,-267.07446645,0.00025205,2]
[355155056,1740937844216,-579.85,0.00025205,2]
[355155058,1740937844226,-500.0,0.00025205,2]
[355155061,1740937844236,-500.0,0.00025205,2]
[355155063,1740937844247,-1302.36,0.00025205,2]
[355155065,1740937844258,-500.0,0.00025205,2]
[355155067,1740937844270,-584.86,0.00025205,2]
[355155069,1740937844280,-873.99,0.00025205,2]
[355155071,1740937844291,-500.0,0.00025205,2]
[355155073,1740937844300,-15895.62,0.00025205,2]
[355155075,1740937844311,-581.49703566,0.00025205,2]
[355155077,1740937844321,-893.79,0.00025205,2]
[355155079,1740937844330,-500.0,0.00025205,2]
[355155081,1740937844341,-990.86,0.00025205,2]
[355155083,1740937844350,-500.0,0.00025205,2]
[355155085,1740937844360,-528.68,0.00025205,2]
[355155087,1740937844370,-1308.74,0.00025205,2]
[355155088,1740937844379,-574.33,0.00025205,2]
[355155090,1740937844389,-579.85,0.00025479,2]
[355155092,1740937844399,-500.0,0.00025479,2]
[355155095,1740937844410,-500.0,0.00025479,2]
[355155097,1740937844420,-1302.36,0.00025479,2]
[355155099,1740937844436,-500.0,0.00025479,2]
[355155101,1740937844451,-584.86,0.00025479,2]
[355155103,1740937844464,-873.99,0.00025479,2]
[355155105,1740937844475,-183.41,0.00025479,2]
[355155107,1740937844485,-15895.62,0.00025479,2]
[355155109,1740937844495,-893.79,0.00025479,2]
[355155111,1740937844506,-500.0,0.00025479,2]
[355155113,1740937844517,-990.86,0.00025479,2]
[355155116,1740937844528,-500.0,0.00025479,2]
[355155118,1740937844538,-528.68,0.00025479,2]
[355155120,1740937844547,-1308.74,0.00025479,2]
[355155122,1740937844557,-574.33,0.00025479,2]
[355155124,1740937844567,-579.85,0.00025753,2]
[355155126,1740937844578,-500.0,0.00025753,2]
[355155128,1740937844589,-500.0,0.00025753,2]
[355155130,1740937844600,-1302.36,0.00025753,2]
[355155132,1740937844610,-500.0,0.00025753,2]
[355155134,1740937844620,-584.86,0.00025753,2]
[355155136,1740937844630,-873.99,0.00025753,2]
[355155138,1740937844640,-15895.62,0.00025753,2]
[355155140,1740937844651,-893.79,0.00025753,2]
[355155142,1740937844661,-628.41,0.00025753,2]
[355155144,1740937844671,-990.86,0.00025753,2]
[355155146,1740937844684,-500.0,0.00025753,2]
[355155148,1740937844694,-528.68,0.00025753,2]
[355155150,1740937844704,-1308.74,0.00025753,2]
[355155152,1740937844714,-574.33,0.00025753,2]
[355155154,1740937844724,-587.0,0.00025884,2]
[355155156,1740937844734,-160.0,0.00026,3]
[355155158,1740937844744,-19629.85965445,0.00026,3]
[355155160,1740937844755,-160.0,0.00026,3]
[355155162,1740937844765,-579.85,0.00026027,2]
[355155164,1740937844776,-500.0,0.00026027,2]
[355155166,1740937844786,-500.0,0.00026027,2]
[355155168,1740937844796,-1302.36,0.00026027,2]
[355155170,1740937844806,-500.0,0.00026027,2]
[355155172,1740937844817,-584.86,0.00026027,2]
[355155174,1740937844827,-873.99,0.00026027,2]
[355155176,1740937844837,-15895.62,0.00026027,2]
[355155178,1740937844847,-893.79,0.00026027,2]
[355155180,1740937844857,-990.86,0.00026027,2]
[355155182,1740937844867,-500.0,0.00026027,2]
[355155184,1740937844878,-528.68,0.00026027,2]
[355155186,1740937844888,-1308.74,0.00026027,2]
[355155188,1740937844898,-574.33,0.00026027,2]
[355155190,1740937844907,-151.54,0.000261,7]
[355155192,1740937844917,-222000.0,0.00026201,2]
[355155194,1740937844928,-500.0,0.00026273,2]
[355155195,1740937844939,-579.85,0.00026301,2]
[355155197,1740937844950,-500.0,0.00026301,2]
[355155199,1740937844960,-500.0,0.00026301,2]
[355155202,1740937844971,-1302.36,0.00026301,2]
[355155204,1740937844983,-500.0,0.00026301,2]
[355155206,1740937844994,-584.86,0.00026301,2]
[355155208,1740937845004,-873.99,0.00026301,2]
[355155209,1740937845016,-15895.62,0.00026301,2]
[355155211,1740937845027,-893.79,0.00026301,2]
[355155214,1740937845038,-990.86,0.00026301,2]
[355155216,1740937845048,-219.62,0.00026301,2]
[355155217,1740937845059,-528.68,0.00026301,2]
[355155220,1740937845069,-1308.74,0.00026301,2]
[355155222,1740937845080,-574.33,0.00026301,2]
[355155223,1740937845090,-746.0,0.000265,12]
[355155225,1740937845100,-579.85,0.00026575,2]
[355155227,1740937845110,-508.93029593,0.00026575,2]
[355155229,1740937845120,-500.0,0.00026575,2]
[355155231,1740937845130,-1302.36,0.00026575,2]
[355155233,1740937845141,-500.0,0.00026575,2]
[355155235,1740937845151,-584.86,0.00026575,2]
[355155237,1740937845162,-873.99,0.00026575,2]
[355155239,1740937845174,-15895.62,0.00026575,2]
[355155241,1740937845188,-893.79,0.00026575,2]
[355155244,1740937845199,-990.86,0.00026575,2]
[355155245,1740937845210,-528.68,0.00026575,2]
[355155247,1740937845220,-1308.74,0.00026575,2]
[355155249,1740937845232,-574.33,0.00026575,2]
[355155251,1740937845242,-1160.17964194,0.00026734,2]
[355155253,1740937845252,-579.85,0.00026849,2]
[355155255,1740937845262,-500.0,0.00026849,2]
[355155257,1740937845274,-1302.36,0.00026849,2]
[355155259,1740937845284,-500.0,0.00026849,2]
[355155261,1740937845294,-584.86,0.00026849,2]
[355155263,1740937845304,-873.99,0.00026849,2]
[355155265,1740937845315,-15895.62,0.00026849,2]
[355155267,1740937845326,-893.79,0.00026849,2]
[355155269,1740937845336,-990.86,0.00026849,2]
[355155270,1740937845347,-528.68,0.00026849,2]
[355155272,1740937845357,-1308.74,0.00026849,2]
[355155274,1740937845367,-574.33,0.00026849,2]
[355155276,1740937845377,-2500.0,0.00027042,3]
[355155278,1740937845387,-2500.0,0.00027051,3]
[355155280,1740937845397,-2500.0,0.00027059,3]
[355155282,1740937845407,-2500.0,0.00027068,3]
[355155284,1740937845417,-2500.0,0.00027077,3]
[355155286,1740937845431,-165.39970474,0.00027077,3]
[355155288,1740937845441,-579.85,0.00027123,2]
[355155290,1740937845451,-443.93,0.00027123,2]
[355155291,1740937845462,-1302.36,0.00027123,2]
[355155293,1740937845472,-500.0,0.00027123,2]
[355155295,1740937845482,-584.86,0.00027123,2]
[355155297,1740937845492,-873.99,0.00027123,2]
[355155299,1740937845502,-15895.62,0.00027123,2]
[355155301,1740937845512,-893.79,0.00027123,2]
[355155315,1740937845669,-990.86,0.00027123,2]
[355155317,1740937845686,-528.68,0.00027123,2]
[355155318,1740937845697,-1308.74,0.00027123,2]
[355155320,1740937845707,-574.33,0.00027123,2]
[355155322,1740937845717,-5957.37774469,0.0002732,2]
[355155324,1740937845728,-500.0,0.00027397,2]
[355155326,1740937845738,-579.85,0.00027397,2]
[355155327,1740937845749,-1302.36,0.00027397,2]